fUST/lending_fUST_20250224
["ID","MTS","AMOUNT","RATE_DAILY","PERIOD"]
[354266491,1740375044455,-150.0,0.00015,2]
[354266493,1740375044464,-550.69,0.00015055,2]
[354266495,1740375044473,-3779.11,0.00015055,2]
[354266497,1740375044482,-349.120408,0.00015055,2]
[354266499,1740375044491,-349.12040294,0.00015055,2]
[354266501,1740375044501,-155.464363,0.00015055,2]
[354266503,1740375044510,-155.464372,0.00015055,2]
[354266505,1740375044519,-500.0,0.00015055,2]
[354266507,1740375044529,-635.8,0.00015055,2]
[354266509,1740375044539,-500.0,0.00015055,2]
[354266511,1740375044548,-504.26,0.00015055,2]
[354266513,1740375044558,-500.0,0.00015055,2]
[354266515,1740375044568,-1384.67,0.00015055,2]
[354266517,1740375044577,-398.093218,0.00015059,2]
[354266519,1740375044586,-398.093218,0.00015059,2]
[354266521,1740375044595,-10450.8495402,0.00015094,2]
[354266523,1740375044604,-20901.6990803,0.00015104,2]
[354266525,1740375044614,-151.0,0.00015104,2]
[354266527,1740375044623,-151.0,0.00015104,2]
[354266528,1740375044632,-151.0,0.00015104,2]
[354266530,1740375044643,-151.0,0.00015104,2]
[354266532,1740375044652,-500.0,0.00015114,2]
[354266534,1740375044665,-500.0,0.00015114,2]
[354266536,1740375044674,-503.99547517,0.00015114,2]
[354266538,1740375044683,-503.64221349,0.00015114,2]
[354266540,1740375044692,-504.95677659,0.00015114,2]
[354266542,1740375044702,-505.05138929,0.00015114,2]
[354266545,1740375044711,-504.80094623,0.00015114,2]
[354266546,1740375044721,-503.90987805,0.00015114,2]
[354266548,1740375044730,-505.48538783,0.00015114,2]
[354266550,1740375044740,-503.98684283,0.00015114,2]
[354266553,1740375044750,-508.46475126,0.00015114,2]
[354266554,1740375044759,-505.54091061,0.00015114,2]
[354266556,1740375044769,-500.0,0.00015114,2]
[354266558,1740375044780,-504.73830858,0.00015114,2]
[354266561,1740375044790,-502.79751058,0.00015114,2]
[354266563,1740375044799,-508.80158283,0.00015114,2]
[354266565,1740375044809,-503.65128986,0.00015114,2]
[354266567,1740375044818,-501.9237883,0.00015114,2]
[354266569,1740375044828,-506.07572752,0.00015114,2]
[354266571,1740375044838,-505.88464529,0.00015114,2]
[354266573,1740375044847,-505.1587973,0.00015114,2]
[354266575,1740375044856,-502.62319587,0.00015114,2]
[354266577,1740375044865,-500.0,0.00015114,2]
[354266579,1740375044874,-500.0,0.00015114,2]
[354266581,1740375044883,-500.0,0.00015114,2]
[354266583,1740375044893,-506.62831086,0.00015114,2]
[354266585,1740375044902,-502.54893236,0.00015114,2]
[354266587,1740375044912,-503.81392817,0.00015114,2]
[354266589,1740375044921,-503.20512536,0.00015114,2]
[354266591,1740375044930,-502.70753774,0.00015114,2]
[354266593,1740375044939,-502.60845114,0.00015114,2]
[354266595,1740375044948,-500.0,0.00015114,2]
[354266597,1740375044957,-504.72655986,0.00015114,2]
[354266599,1740375044966,-500.0,0.00015114,2]
[354266601,1740375044975,-501.19319023,0.00015114,2]
[354266603,1740375044984,-504.36453863,0.00015114,2]
[354266605,1740375044992,-505.14376566,0.00015114,2]
[354266607,1740375045002,-504.54992375,0.00015114,2]
[354266609,1740375045011,-503.80893015,0.00015114,2]
[354266611,1740375045020,-506.15363757,0.00015114,2]
[354266613,1740375045029,-500.0,0.00015114,2]
[354266615,1740375045039,-500.0,0.00015114,2]
[354266616,1740375045047,-505.25237129,0.00015114,2]
[354266618,1740375045057,-501.55792233,0.00015114,2]
[354266620,1740375045066,-504.67414588,0.00015114,2]
[354266622,1740375045075,-502.947694,0.00015114,2]
[354266624,1740375045084,-502.34783474,0.00015114,2]
[354266626,1740375045093,-505.5425372,0.00015114,2]
[354266628,1740375045102,-502.14562629,0.00015114,2]
[354266630,1740375045111,-500.0,0.00015114,2]
[354266632,1740375045120,-502.6539475,0.00015114,2]
[354266634,1740375045129,-501.94477126,0.00015114,2]
[354266636,1740375045138,-502.73606524,0.00015114,2]
[354266639,1740375045149,-503.33812085,0.00015114,2]
[354266640,1740375045158,-507.53118664,0.00015114,2]
[354266642,1740375045167,-502.02429456,0.00015114,2]
[354266644,1740375045176,-504.72560099,0.00015114,2]
[354266646,1740375045184,-501.46906241,0.00015114,2]
[354266648,1740375045194,-500.0,0.00015114,2]
[354266650,1740375045203,-500.0,0.00015114,2]
[354266652,1740375045212,-505.52236714,0.00015114,2]
[354266654,1740375045221,-500.0,0.00015114,2]
[354266656,1740375045231,-501.27922376,0.00015114,2]
[354266658,1740375045240,-502.78221384,0.00015114,2]
[354266660,1740375045249,-505.75068158,0.00015114,2]
[354266662,1740375045258,-500.0,0.00015114,2]
[354266664,1740375045267,-500.0,0.00015114,2]
[354266666,1740375045276,-502.50849359,0.00015114,2]
[354266668,1740375045285,-500.0,0.00015114,2]
[354266670,1740375045294,-506.56140813,0.00015114,2]
[354266672,1740375045304,-500.0,0.00015114,2]
[354266674,1740375045313,-504.3420254,0.00015114,2]
[354266676,1740375045322,-502.76414863,0.00015114,2]
[354266678,1740375045331,-501.80573602,0.00015114,2]
[354266680,1740375045341,-506.82639246,0.00015114,2]
[354266682,1740375045350,-509.44778026,0.00015114,2]
[354266684,1740375045359,-594.00627862,0.00015114,2]
[354266686,1740375045368,-500.0,0.00015114,2]
[354266688,1740375045378,-542.40248694,0.00015114,2]
[354266690,1740375045387,-505.97237244,0.00015114,2]
[354266692,1740375045397,-500.0,0.00015114,2]
[354266694,1740375045407,-151.0,0.00015114,2]
[354266696,1740375045416,-151.0,0.00015114,2]
[354266698,1740375045426,-465.55536418,0.00015114,2]
[354266700,1740375045436,-500.0,0.00015114,2]
[354266702,1740375045445,-506.8891854,0.00015114,2]
[354266704,1740375045454,-500.0,0.00015114,2]
[354266706,1740375045464,-500.0,0.00015114,2]
[354266708,1740375045473,-508.08877755,0.00015114,2]
[354266710,1740375045482,-500.0,0.00015114,2]
[354266712,1740375045491,-500.0,0.00015114,2]
[354266714,1740375045501,-500.99962877,0.00015114,2]
[354266716,1740375045510,-542.43,0.00015114,2]
[354266718,1740375045519,-500.0,0.00015114,2]
[354266720,1740375045529,-502.79603949,0.00015114,2]
[354266722,1740375045537,-500.0,0.00015114,2]
[354266724,1740375045546,-200.0,0.00015114,2]
[354266726,1740375045555,-506.17423434,0.00015114,2]
[354266727,1740375045564,-500.0,0.00015114,2]
[354266729,1740375045574,-500.0,0.00015114,2]
[354266731,1740375045583,-500.0,0.00015114,2]
[354266733,1740375045592,-500.0,0.00015114,2]
[354266734,1740375045601,-500.0,0.00015114,2]
[354266736,1740375045610,-502.71597334,0.00015114,2]
[354266738,1740375045619,-500.0,0.00015114,2]
[354266740,1740375045628,-503.78959497,0.00015114,2]
[354266742,1740375045637,-632.85370645,0.00015114,2]
[354266744,1740375045647,-500.0,0.00015114,2]
[354266746,1740375045659,-151.0,0.00015114,2]
[354266748,1740375045669,-151.0,0.00015114,2]
[354266750,1740375045678,-151.0,0.00015114,2]
[354266752,1740375045687,-500.0,0.00015114,2]
[354266754,1740375045697,-381.2569572,0.00015114,2]
[354266756,1740375045707,-191.405262,0.00015114,2]
[354266758,1740375045716,-500.0,0.00015114,2]
[354266760,1740375045725,-398.093218,0.00015114,2]
[354266762,1740375045735,-398.093218,0.00015114,2]
[354266764,1740375045744,-512.05734213,0.00015114,2]
[354266766,1740375045753,-398.093218,0.00015114,2]
[354266767,1740375045763,-398.093218,0.00015114,2]
[354266769,1740375045772,-500.0,0.00015114,2]
[354266771,1740375045781,-500.0,0.00015114,2]
[354266773,1740375045790,-266.86162742,0.00015114,2]
[354266775,1740375045800,-500.0,0.00015114,2]
[354266777,1740375045809,-500.0,0.00015114,2]
[354266779,1740375045818,-450.90721686,0.00015114,2]
[354266781,1740375045828,-151.0,0.00015114,2]
[354266783,1740375045837,-151.0,0.00015114,2]
[354266785,1740375045846,-151.0,0.00015114,2]
[354266787,1740375045856,-186.322582,0.00015114,2]
[354266789,1740375045865,-186.322582,0.00015114,2]
[354266791,1740375045874,-151.0,0.00015114,2]
[354266793,1740375045884,-186.322582,0.00015114,2]
[354266795,1740375045895,-151.0,0.00015114,2]
[354266797,1740375045904,-151.0,0.00015114,2]
[354266799,1740375045913,-186.322582,0.00015114,2]
[354266801,1740375045922,-186.322582,0.00015114,2]
[354266803,1740375045932,-186.322582,0.00015114,2]
[354266805,1740375045941,-500.0,0.00015114,2]
[354266807,1740375045950,-500.0,0.00015114,2]
[354266809,1740375045959,-226.904674,0.00015114,2]
[354266811,1740375045968,-226.904674,0.00015114,2]
[354266813,1740375045977,-226.904674,0.00015114,2]
[354266814,1740375045986,-226.904674,0.00015114,2]
[354266824,1740375046063,-226.904674,0.00015114,2]
[354266826,1740375046073,-226.904674,0.00015114,2]
[354266828,1740375046082,-639.5,0.00015114,2]
[354266830,1740375046091,-151.0,0.00015114,2]
[354266832,1740375046100,-151.0,0.00015114,2]
[354266834,1740375046109,-151.0,0.00015114,2]
[354266836,1740375046118,-352.6059685,0.00015114,2]
[354266838,1740375046127,-501.5972644,0.00015114,2]
[354266840,1740375046136,-500.0,0.00015114,2]
[354266842,1740375046148,-540.44933839,0.00015114,2]
[354266844,1740375046157,-500.0,0.00015114,2]
[354266846,1740375046166,-500.0,0.00015114,2]
[354266848,1740375046175,-500.0,0.00015114,2]
[354266849,1740375046184,-592.05,0.00015114,2]
[354266851,1740375046193,-151.0,0.00015114,2]
[354266853,1740375046203,-151.0,0.00015114,2]
[354266855,1740375046212,-151.0,0.00015114,2]
[354266857,1740375046221,-151.0,0.00015114,2]
[354266859,1740375046230,-151.0,0.00015114,2]
[354266861,1740375046239,-151.0,0.00015114,2]
[354266863,1740375046248,-500.0,0.00015114,2]
[354266865,1740375046257,-500.0,0.00015114,2]
[354266867,1740375046266,-622.79860576,0.00015114,2]
[354266869,1740375046275,-500.0,0.00015114,2]
[354266871,1740375046285,-500.0,0.00015114,2]
[354266873,1740375046293,-500.0,0.00015114,2]
[354266875,1740375046302,-500.0,0.00015114,2]
[354266877,1740375046311,-500.0,0.00015114,2]
[354266879,1740375046321,-500.0,0.00015114,2]
[354266881,1740375046330,-507.48140636,0.00015114,2]
[354266883,1740375046339,-500.0,0.00015114,2]
[354266885,1740375046349,-500.0,0.00015114,2]
[354266887,1740375046359,-500.0,0.00015114,2]
[354266889,1740375046367,-500.0,0.00015114,2]
[354266891,1740375046377,-500.0,0.00015114,2]
[354266893,1740375046386,-501.31189055,0.00015114,2]
[354266894,1740375046397,-291.62730782,0.00015114,2]
[354266895,1740375046407,-500.0,0.00015114,2]
[354266896,1740375046416,-501.45370019,0.00015114,2]
[354266897,1740375046425,-500.0,0.00015114,2]
[354266898,1740375046435,-1243.27,0.00015114,2]
[354266899,1740375046444,-503.76533332,0.00015114,2]
[354266900,1740375046454,-500.0,0.00015114,2]
[354266901,1740375046463,-507.02329536,0.00015114,2]
[354266903,1740375046472,-500.0,0.00015114,2]
[354266905,1740375046481,-500.0,0.00015114,2]
[354266907,1740375046490,-500.0,0.00015114,2]
[354266909,1740375046499,-500.0,0.00015114,2]
[354266911,1740375046509,-500.0,0.00015114,2]
[354266913,1740375046518,-500.0,0.00015114,2]
[354266915,1740375046527,-500.0,0.00015114,2]
[354266917,1740375046537,-500.0,0.00015114,2]
[354266919,1740375046546,-500.0,0.00015114,2]
[354266921,1740375046556,-500.0,0.00015114,2]
[354266923,1740375046565,-501.25261264,0.00015114,2]
[354266925,1740375046574,-504.14542125,0.00015114,2]
[354266927,1740375046583,-503.527891,0.00015114,2]
[354266929,1740375046593,-505.600937,0.00015114,2]
[354266931,1740375046602,-505.45899023,0.00015114,2]
[354266934,1740375046611,-301.47,0.00015137,2]
[354266936,1740375046621,-550.69,0.00015138,2]
[354266938,1740375046630,-3779.11,0.00015138,2]
[354266940,1740375046639,-635.8,0.00015138,2]
[354266941,1740375046650,-281.56,0.00015138,2]
[354266942,1740375046661,-504.26,0.00015138,2]
[354266943,1740375046671,-500.0,0.00015138,2]
[354266944,1740375046680,-1384.67,0.00015138,2]
[354266945,1740375046690,-10450.8495402,0.00015143,2]
[354266946,1740375046701,-151.0,0.00015147,2]
[354266947,1740375046710,-151.0,0.00015147,2]
[354266948,1740375046719,-398.093218,0.00015147,2]
[354266949,1740375046728,-398.093218,0.00015147,2]
[354266950,1740375046739,-151.0,0.00015147,2]
[354266951,1740375046748,-186.322582,0.00015147,2]
[354266952,1740375046758,-186.322582,0.00015147,2]
[354266953,1740375046767,-226.904674,0.00015147,2]
[354266954,1740375046777,-226.904674,0.00015147,2]
[354266955,1740375046786,-281.589882,0.00015147,2]
[354266956,1740375046795,-10450.8495402,0.00015153,2]
[354266957,1740375046807,-503.94685675,0.00015163,2]
[354266958,1740375046822,-500.0,0.00015163,2]
[354266959,1740375046837,-508.46764408,0.00015163,2]
[354266960,1740375046850,-503.62371071,0.00015163,2]
[354266961,1740375046860,-500.0,0.00015163,2]
[354266962,1740375046874,-502.67256163,0.00015163,2]
[354266964,1740375046888,-500.0,0.00015163,2]
[354266966,1740375046904,-500.0,0.00015163,2]
[354266968,1740375046917,-500.0,0.00015163,2]
[354266970,1740375046932,-500.0,0.00015163,2]
[354266971,1740375046947,-504.18992893,0.00015163,2]
[354266972,1740375046960,-1279.49,0.00015163,2]
[354266973,1740375046976,-500.0,0.00015163,2]
[354266974,1740375046988,-500.0,0.00015163,2]
[354266975,1740375047002,-530.17217719,0.00015163,2]
[354266976,1740375047014,-500.0,0.00015163,2]
[354266977,1740375047026,-151.0,0.00015163,2]
[354266978,1740375047036,-503.66029461,0.00015163,2]
[354266979,1740375047049,-570.56942112,0.00015163,2]
[354266980,1740375047061,-500.0,0.00015163,2]
[354266981,1740375047074,-500.0,0.00015163,2]
[354266982,1740375047087,-398.093218,0.00015163,2]
[354266983,1740375047101,-398.093218,0.00015163,2]
[354266984,1740375047116,-398.093218,0.00015163,2]
[354266985,1740375047130,-398.093218,0.00015163,2]
[354266986,1740375047142,-500.0,0.00015163,2]
[354266987,1740375047152,-500.0,0.00015163,2]
[354266988,1740375047163,-503.34433438,0.00015163,2]
[354266989,1740375047175,-505.84932179,0.00015163,2]
[354266991,1740375047189,-500.0,0.00015163,2]
[354266993,1740375047203,-151.0,0.00015163,2]
[354266996,1740375047214,-186.322582,0.00015163,2]
[354266998,1740375047225,-186.322582,0.00015163,2]
[354267000,1740375047238,-186.322582,0.00015163,2]
[354267002,1740375047249,-186.322582,0.00015163,2]
[354267003,1740375047259,-500.0,0.00015163,2]
[354267004,1740375047271,-500.0,0.00015163,2]
[354267005,1740375047282,-510.02236181,0.00015163,2]
[354267006,1740375047293,-226.904674,0.00015163,2]
[354267007,1740375047305,-226.904674,0.00015163,2]
[354267008,1740375047316,-226.904674,0.00015163,2]
[354267009,1740375047327,-226.904674,0.00015163,2]
[354267010,1740375047339,-500.0,0.00015163,2]
[354267011,1740375047350,-500.0,0.00015163,2]
[354267012,1740375047362,-500.0,0.00015163,2]
[354267013,1740375047373,-500.0,0.00015163,2]
[354267014,1740375047384,-504.17668774,0.00015163,2]
[354267015,1740375047396,-500.0,0.00015163,2]
[354267016,1740375047407,-500.0,0.00015163,2]
[354267017,1740375047418,-500.0,0.00015163,2]
[354267018,1740375047429,-500.76469475,0.00015163,2]
[354267019,1740375047441,-501.8690157,0.00015163,2]
[354267020,1740375047452,-500.0,0.00015163,2]
[354267021,1740375047464,-500.0,0.00015163,2]
[354267022,1740375047475,-500.0,0.00015163,2]
[354267023,1740375047487,-500.0,0.00015163,2]
[354267024,1740375047498,-505.46000485,0.00015163,2]
[354267025,1740375047509,-503.10238167,0.00015163,2]
[354267026,1740375047521,-500.0,0.00015163,2]
[354267027,1740375047533,-500.0,0.00015163,2]
[354267028,1740375047544,-500.0,0.00015163,2]
[354267029,1740375047556,-500.0,0.00015163,2]
[354267030,1740375047568,-500.0,0.00015163,2]
[354267031,1740375047579,-500.0,0.00015163,2]
[354267032,1740375047590,-500.0,0.00015163,2]
[354267033,1740375047601,-500.0,0.00015163,2]
[354267034,1740375047613,-500.0,0.00015163,2]
[354267035,1740375047624,-500.0,0.00015163,2]
[354267036,1740375047635,-190.96548097,0.00015173,2]
[354267037,1740375047647,-500.0,0.00015173,2]
[354267038,1740375047660,-162.1791768,0.00015173,2]
[354267039,1740375047672,-522.43187383,0.00015173,2]
[354267040,1740375047683,-500.57074538,0.00015173,2]
[354267041,1740375047695,-500.0,0.00015173,2]
[354267042,1740375047707,-500.0,0.00015173,2]
[354267043,1740375047718,-500.7273752,0.00015173,2]
[354267044,1740375047730,-500.0,0.00015173,2]
[354267045,1740375047741,-500.0,0.00015173,2]
[354267051,1740375047855,-500.0,0.00015173,2]
[354267053,1740375047865,-330.90209145,0.00015173,2]
[354267054,1740375047874,-431.40992688,0.00015173,2]
[354267055,1740375047883,-500.0,0.00015173,2]
[354267056,1740375047892,-151.0,0.00015173,2]
[354267057,1740375047903,-151.0,0.00015173,2]
[354267058,1740375047911,-186.322582,0.00015173,2]
[354267059,1740375047920,-186.322582,0.00015173,2]
[354267060,1740375047930,-226.904674,0.00015173,2]
[354267061,1740375047939,-226.904674,0.00015173,2]
[354267062,1740375047948,-398.093218,0.00015179,2]
[354267063,1740375047958,-398.093218,0.00015179,2]
[354267065,1740375047967,-10450.8495402,0.00015186,2]
[354267067,1740375047976,-504.15225319,0.00015196,2]
[354267069,1740375047985,-500.0,0.00015196,2]
[354267071,1740375047994,-245.14779682,0.00015196,2]
[354267073,1740375048003,-504.96080417,0.00015196,2]
[354267075,1740375048012,-502.0,0.00015196,2]
[354267077,1740375048022,-500.0,0.00015196,2]
[354267079,1740375048030,-506.73488529,0.00015196,2]
[354267081,1740375048040,-500.0,0.00015196,2]
[354267083,1740375048050,-500.0,0.00015196,2]
[354267085,1740375048060,-500.0,0.00015196,2]
[354267087,1740375048070,-500.0,0.00015196,2]
[354267089,1740375048080,-500.0,0.00015196,2]
[354267091,1740375048090,-500.0,0.00015196,2]
[354267093,1740375048100,-500.0,0.00015196,2]
[354267094,1740375048110,-500.0,0.00015196,2]
[354267095,1740375048119,-500.0,0.00015196,2]
[354267097,1740375048129,-500.0,0.00015196,2]
[354267099,1740375048138,-500.0,0.00015196,2]
[354267100,1740375048149,-271.22088126,0.00015196,2]
[354267101,1740375048158,-500.0,0.00015196,2]
[354267102,1740375048167,-500.0,0.00015196,2]
[354267103,1740375048177,-500.0,0.00015196,2]
[354267104,1740375048186,-500.0,0.00015196,2]
[354267105,1740375048196,-500.0,0.00015196,2]
[354267106,1740375048206,-151.0,0.00015196,2]
[354267107,1740375048215,-565.68553695,0.00015196,2]
[354267108,1740375048224,-500.0,0.00015196,2]
[354267109,1740375048233,-500.0,0.00015196,2]
[354267110,1740375048243,-500.0,0.00015196,2]
[354267111,1740375048252,-365.12,0.00015196,2]
[354267112,1740375048261,-500.0,0.00015196,2]
[354267113,1740375048271,-151.0,0.00015196,2]
[354267114,1740375048280,-186.322582,0.00015196,2]
[354267115,1740375048289,-186.322582,0.00015196,2]
[354267116,1740375048299,-500.0,0.00015196,2]
[354267117,1740375048308,-226.904674,0.00015196,2]
[354267118,1740375048317,-226.904674,0.00015196,2]
[354267119,1740375048326,-500.0,0.00015196,2]
[354267120,1740375048335,-500.0,0.00015196,2]
[354267121,1740375048344,-500.0,0.00015196,2]
[354267122,1740375048354,-642.36506712,0.00015196,2]
[354267123,1740375048363,-225.28,0.00015196,2]
[354267124,1740375048373,-500.0,0.00015196,2]
[354267125,1740375048382,-381.33130632,0.00015196,2]
[354267126,1740375048391,-1243.27,0.00015196,2]
[354267127,1740375048401,-500.0,0.00015196,2]
[354267128,1740375048411,-397.87883305,0.00015196,2]
[354267129,1740375048421,-351.98,0.00015196,2]
[354267130,1740375048430,-550.69,0.0001522,2]
[354267131,1740375048440,-3779.11,0.0001522,2]
[354267132,1740375048449,-635.8,0.0001522,2]
[354267133,1740375048459,-504.26,0.0001522,2]
[354267134,1740375048468,-500.0,0.0001522,2]
[354267135,1740375048477,-1384.67,0.0001522,2]
[354267136,1740375048487,-10450.8495402,0.00015226,2]
[354267137,1740375048496,-398.093218,0.00015229,2]
[354267138,1740375048505,-398.093218,0.00015229,2]
[354267140,1740375048515,-500.0,0.00015236,2]
[354267142,1740375048524,-500.0,0.00015236,2]
[354267144,1740375048533,-500.0,0.00015236,2]
[354267146,1740375048543,-500.0,0.00015236,2]
[354267148,1740375048552,-1000.0,0.00015236,2]
[354267150,1740375048561,-501.74288815,0.00015236,2]
[354267152,1740375048571,-500.0,0.00015236,2]
[354267154,1740375048581,-501.66672248,0.00015236,2]
[354267156,1740375048590,-500.0,0.00015236,2]
[354267158,1740375048599,-500.0,0.00015236,2]
[354267160,1740375048608,-500.0,0.00015236,2]
[354267162,1740375048617,-151.0,0.00015236,2]
[354267164,1740375048627,-151.0,0.00015236,2]
[354267166,1740375048636,-500.0,0.00015236,2]
[354267167,1740375048645,-500.0,0.00015236,2]
[354267168,1740375048655,-500.0,0.00015236,2]
[354267169,1740375048668,-398.093218,0.00015236,2]
[354267170,1740375048678,-398.093221,0.00015236,2]
[354267171,1740375048687,-151.0,0.00015236,2]
[354267172,1740375048697,-151.0,0.00015236,2]
[354267173,1740375048706,-186.322582,0.00015236,2]
[354267174,1740375048715,-186.322574,0.00015236,2]
[354267175,1740375048725,-226.904674,0.00015236,2]
[354267176,1740375048735,-226.90468,0.00015236,2]
[354267178,1740375048744,-500.0,0.00015245,2]
[354267179,1740375048754,-500.0,0.00015245,2]
[354267180,1740375048763,-500.0,0.00015245,2]
[354267181,1740375048773,-500.0,0.00015245,2]
[354267182,1740375048782,-503.29351089,0.00015245,2]
[354267183,1740375048792,-500.0,0.00015245,2]
[354267184,1740375048801,-1279.49,0.00015245,2]
[354267185,1740375048810,-500.0,0.00015245,2]
[354267186,1740375048820,-500.0,0.00015245,2]
[354267187,1740375048829,-500.0,0.00015245,2]
[354267188,1740375048838,-500.0,0.00015245,2]
[354267189,1740375048847,-567.85033298,0.00015245,2]
[354267190,1740375048857,-500.0,0.00015245,2]
[354267191,1740375048866,-313.13464628,0.00015245,2]
[354267192,1740375048875,-500.0,0.00015245,2]
[354267193,1740375048885,-500.0,0.00015245,2]
[354267194,1740375048895,-246.04,0.00015245,2]
[354267195,1740375048904,-505.26053619,0.00015245,2]
[354267196,1740375048913,-505.6807251,0.00015245,2]
[354267198,1740375048923,-533.08889368,0.00015245,2]
[354267200,1740375048932,-500.0,0.00015245,2]
[354267202,1740375048941,-506.11416344,0.00015245,2]
[354267203,1740375048951,-500.0,0.00015245,2]
[354267205,1740375048960,-503.89930332,0.00015245,2]
[354267207,1740375048969,-503.60214728,0.00015245,2]
[354267209,1740375048979,-510.28281057,0.00015245,2]
[354267211,1740375048988,-502.99098845,0.00015245,2]
[354267213,1740375048998,-500.0,0.00015245,2]
[354267215,1740375049008,-500.0,0.00015245,2]
[354267216,1740375049018,-500.0,0.00015245,2]
[354267218,1740375049027,-500.0,0.00015245,2]
[354267220,1740375049036,-500.0,0.00015245,2]
[354267222,1740375049045,-504.1473725,0.00015245,2]
[354267223,1740375049054,-500.0,0.00015245,2]
[354267225,1740375049063,-500.0,0.00015245,2]
[354267226,1740375049073,-500.0,0.00015245,2]
[354267227,1740375049082,-10450.8495402,0.00015269,2]
[354267228,1740375049091,-500.0,0.00015279,2]
[354267229,1740375049100,-538.24745752,0.00015279,2]
[354267230,1740375049110,-500.0,0.00015279,2]
[354267231,1740375049119,-520.6,0.00015279,2]
[354267232,1740375049128,-321.27273264,0.00015279,2]
[354267233,1740375049137,-500.0,0.00015279,2]
[354267234,1740375049147,-500.0,0.00015279,2]
[354267235,1740375049158,-500.0,0.00015279,2]
[354267236,1740375049167,-500.0,0.00015279,2]
[354267237,1740375049177,-549.88613882,0.00015279,2]
[354267238,1740375049186,-500.0,0.00015279,2]
[354267239,1740375049195,-509.144488,0.00015279,2]
[354267240,1740375049204,-576.55,0.00015279,2]
[354267241,1740375049214,-640.41663529,0.00015279,2]
[354267242,1740375049224,-424.32,0.00015279,2]
[354267243,1740375049233,-500.0,0.00015279,2]
[354267244,1740375049243,-159.86,0.00015279,2]
[354267245,1740375049252,-500.0,0.00015279,2]
[354267246,1740375049262,-160.38,0.00015279,2]
[354267247,1740375049272,-1243.27,0.00015279,2]
[354267248,1740375049281,-500.0,0.00015279,2]
[354267249,1740375049291,-550.69,0.00015302,2]
[354267250,1740375049300,-3779.11,0.00015302,2]
[354267251,1740375049310,-635.8,0.00015302,2]
[354267252,1740375049319,-504.26,0.00015302,2]
[354267253,1740375049329,-421.27,0.00015302,2]
[354267254,1740375049340,-1384.67,0.00015302,2]
[354267255,1740375049350,-500.0,0.00015305,2]
[354267256,1740375049360,-500.0,0.00015305,2]
[354267257,1740375049370,-500.0,0.00015318,2]
[354267258,1740375049380,-500.0,0.00015318,2]
[354267259,1740375049389,-502.32853479,0.00015318,2]
[354267260,1740375049401,-1000.0,0.00015318,2]
[354267261,1740375049411,-500.0,0.00015318,2]
[354267262,1740375049421,-500.0,0.00015318,2]
[354267263,1740375049430,-505.43795202,0.00015318,2]
[354267264,1740375049440,-502.59285531,0.00015318,2]
[354267265,1740375049450,-500.0,0.00015318,2]
[354267266,1740375049459,-500.0,0.00015318,2]
[354267267,1740375049469,-500.0,0.00015318,2]
[354267268,1740375049480,-396.0,0.00015326,2]
[354267269,1740375049489,-500.0,0.00015327,2]
[354267270,1740375049499,-500.0,0.00015327,2]
[354267271,1740375049508,-504.70978348,0.00015327,2]
[354267272,1740375049518,-500.0,0.00015327,2]
[354267273,1740375049527,-500.0,0.00015327,2]
[354267274,1740375049537,-1279.49,0.00015327,2]